fUST/lending_fUST_20240522
["ID","MTS","AMOUNT","RATE_DAILY","PERIOD"]
[327726204,1716385756326,-1437.86107925,0.00025,2]
[327726205,1716385758229,-620.00349895,0.00026995,2]
[327726208,1716385777355,456.43843438,0.00025,2]
[327726210,1716385795434,456.43843438,0.00025,2]
[327726211,1716385813304,456.43843438,0.00025,2]
[327726222,1716385832876,-888.23740997,0.00028,4]
[327726225,1716385832896,-355.28152847,0.00028,4]
[327726249,1716385835298,456.43843438,0.00025,2]
[327726301,1716385839008,-5093.88729722,0.00028,4]
[327726512,1716385841261,-32648.41596532,0.00028,4]
[327726513,1716385841271,-285.21177558,0.00029,2]
[327726514,1716385841281,-1377.01345455,0.0003,4]
[327726515,1716385841290,-25149.86651672,0.0003,2]
[327726531,1716385844458,-5552.10377861,0.0003,2]
[327726533,1716385844469,-150.0,0.00031,6]
[327726535,1716385844479,-150.0,0.00031,7]
[327726538,1716385844490,-165.94124,0.00031007,2]
[327726540,1716385844500,-214.90786028,0.00031932,7]
[327726542,1716385844510,-1000.0,0.00032,40]
[327726544,1716385844521,-783.97235853,0.00032,4]
[327726545,1716385844532,-154.82093995,0.00032065,7]
[327726547,1716385844542,-167.1264947,0.00032449,3]
[327726549,1716385844552,-154.82093995,0.00032509,7]
[327726551,1716385844562,-155.21441404,0.00032569,7]
[327726553,1716385844572,-323.15342602,0.000327,30]
[327726555,1716385844583,-51769.77610312,0.00032777,2]
[327726556,1716385844597,-19296.96335384,0.00032777,2]
[327726557,1716385844607,-57.73974454,0.00032777,10]
[327726566,1716385849484,-192.26025546,0.00032777,10]
[327726567,1716385849495,-99822.31923489,0.000328,2]
[327726568,1716385855322,456.43843438,0.00025,2]
[327726569,1716385858567,209.472,0.00024536,2]
[327726570,1716385884104,150.145,0.00024538,2]
[327726576,1716386732177,-158.156312,0.00024384,2]
[327726577,1716386732196,-151.545,0.00024538,2]
[327726578,1716386732215,-882.72900474,0.000299,2]
[327726579,1716386732234,-155.84725395,0.0003,4]
[327726580,1716386732253,-613.25701356,0.0003,4]
[327726581,1716386732273,-7842.8674812,0.0003,2]
[327726582,1716386837122,-150.0,0.000279,2]
[327726583,1716386837147,-912.52243087,0.0003,2]
[327726620,1716387033740,-3118.0382419,0.0003,2]
[327726806,1716387040745,-9903.18378,0.0003,2]
[327726808,1716387040757,-1281.3189705,0.0003,2]
[327726809,1716387040769,-2706.16105821,0.0003,2]
[327726810,1716387040781,-4937.87833265,0.0003,2]
[327726811,1716387040791,-613.25701356,0.0003,4]
[327726812,1716387040800,-1473.0177339,0.0003,2]
[327726813,1716387040812,-526.9822661,0.0003,2]
[327726814,1716387040821,-1071.39735,0.0003,4]
[327726815,1716387040831,-71.09225843,0.0003092,2]
[327726842,1716387043638,-1089.37800727,0.00031,6]
[327727069,1716387046543,-1910.62199273,0.00031,6]
[327727071,1716387046553,-158.156312,0.00031007,2]
[327727073,1716387046563,-1543.00257048,0.0003101,6]
[327727075,1716387046575,-1456.99742952,0.0003101,6]
[327727077,1716387046584,-1417.50396518,0.0003102,6]
[327727079,1716387046596,-1582.49603482,0.0003102,6]
[327727081,1716387046606,-3000.0,0.0003103,6]
[327727083,1716387046616,-3000.0,0.0003104,6]
[327727085,1716387046625,-2641.72970991,0.0003105,6]
[327727096,1716387046733,-358.27029009,0.0003105,6]
[327727098,1716387046743,-3000.0,0.0003106,6]
[327727100,1716387046753,-3000.0,0.0003107,6]
[327727102,1716387046763,-3000.0,0.0003108,6]
[327727104,1716387046772,-3000.0,0.0003109,6]
[327727106,1716387046782,-3000.0,0.000311,6]
[327727108,1716387046792,-3000.0,0.0003111,6]
[327727110,1716387046802,-5850.0,0.0003112,6]
[327727111,1716387046812,-207.74426494,0.0003146,7]
[327727112,1716387046822,-207.74426494,0.00031586,7]
[327727113,1716387046832,-150.0,0.00032,6]
[327727114,1716387046842,-783.97235853,0.00032,4]
[327727115,1716387046852,-167.1264947,0.00032471,3]
[327727116,1716387046861,-155.21441404,0.00032581,7]
[327727117,1716387046871,-207.74426494,0.00032636,7]
[327727118,1716387046880,-323.15342602,0.000327,30]
[327727119,1716387046890,-281.86801034,0.00032714,2]
[327727141,1716387140731,316.38176035,9.999e-05,2]
[327727142,1716387163170,463.51047956,9.999e-05,2]
[327727143,1716387215538,150.0,0.00023,30]
[327727144,1716387220718,151.23047445,0.00023,30]
[327727145,1716387328966,522.84603088,9.999e-05,2]
[327727147,1716387560900,2679.91725099,9.999e-05,2]
[327727149,1716388053175,-1149.63675721,0.000188,2]
[327727150,1716388053196,-1898.47491461,0.00018899,2]
[327727151,1716388053217,-553.7562026,0.000189,2]
[327727152,1716388053239,-151.0,0.00022185,3]
[327727153,1716388053260,-151.0,0.00022185,3]
[327727154,1716388053282,-553.7562026,0.000239,2]
[327727155,1716388053305,-158.668727,0.00024384,2]
[327727156,1716388053327,-237.603028,0.0002463,2]
[327727157,1716388053355,-362.20721548,0.00025204,2]
[327727158,1716388053378,-249.687,0.00025805,2]
[327727159,1716388053400,-150.0,0.00025805,2]
[327727160,1716388053422,-150.0,0.00028805,2]
[327727161,1716388053445,-553.7562026,0.000289,2]
[327727162,1716388053466,-178.86921035,0.0003,4]
[327727163,1716388053487,-235.82398843,0.0003,2]
[327727424,1716388239996,-150.0,0.00025805,2]
[327727425,1716388240007,-997.15029826,0.000299,2]
[327727427,1716388240018,-113.21652333,0.0003,2]
[327727429,1716388240031,-15148.72189871,0.0003,2]
[327727441,1716388241222,-15204.20788486,0.0003,2]
[327727442,1716388241232,-1021.92216583,0.0003,4]
[327727443,1716388241245,-158.668727,0.00030639,2]
[327727444,1716388241255,-1115.78616195,0.00030653,4]
[327727445,1716388241264,-997.15029819,0.00030781,2]
[327727446,1716388241273,-312.41761425,0.00031,2]
[327727447,1716388241282,-150.0,0.00031,6]
[327727448,1716388241292,-997.15029819,0.00031661,2]
[327727449,1716388241302,-186.96983844,0.0003185,7]
[327727450,1716388241312,-590.0,0.000319,2]
[327727451,1716388241322,-154.82093995,0.00031972,7]
[327727452,1716388241331,-186.96983844,0.0003245,7]
[327727453,1716388241341,-997.15029819,0.00032542,2]
[327727454,1716388241352,-781.76485416,0.00032568,2]
[327727455,1716388241361,-151.85986035,0.00032574,7]
[327727456,1716388241371,-2000.0,0.0003258,7]
[327727457,1716388241381,-186.96983844,0.00032652,7]
[327727458,1716388241392,-323.15342602,0.00032713,30]
[327727459,1716388241402,-718.13198966,0.00032714,2]
[327727460,1716388241412,-734.51,0.00032781,3]
[327727461,1716388241423,-367.26,0.00032781,3]
[327727462,1716388241435,-14.66810635,0.00032781,3]
[327727463,1716388241599,-168.96189365,0.00032781,3]
[327727464,1716388241609,-314.84650635,0.00032781,3]
[327727567,1716388246572,-236.06349365,0.00032781,3]
[327727569,1716388246584,-2470.39,0.00032783,3]
[327727571,1716388246594,-383.05580771,0.0003279,2]
[327727572,1716388246604,-490.0,0.0003279,2]
[327727574,1716388246614,-500.0,0.0003279,2]
[327727577,1716388246624,-500.0,0.0003279,2]
[327727579,1716388246634,-500.0,0.0003279,2]
[327727581,1716388246643,-500.0,0.0003279,2]
[327727583,1716388246652,-500.0,0.0003279,2]
[327727585,1716388246662,-500.0,0.0003279,2]
[327727587,1716388246671,-500.0,0.0003279,2]
[327727589,1716388246680,-500.0,0.0003279,2]
[327727591,1716388246690,-553.51745635,0.0003279,2]
[327727593,1716388246699,-500.0,0.0003279,2]
[327727595,1716388246709,-500.0,0.0003279,2]
[327727596,1716388246718,-500.0,0.0003279,2]
[327727598,1716388246728,-500.0,0.0003279,2]
[327727600,1716388246737,-500.0,0.0003279,2]
[327727602,1716388246748,-500.0,0.0003279,2]
[327727604,1716388246757,-500.0,0.0003279,2]
[327727606,1716388246766,-500.0,0.0003279,2]
[327727608,1716388246775,-215.0,0.0003279,2]
[327727610,1716388246784,-500.0,0.0003279,2]
[327727611,1716388246793,-500.0,0.0003279,2]
[327727613,1716388246802,-500.0,0.0003279,2]
[327727614,1716388246811,-500.0,0.0003279,2]
[327727616,1716388246821,-500.0,0.0003279,2]
[327727617,1716388246830,-500.0,0.0003279,2]
[327727619,1716388246839,-500.0,0.0003279,2]
[327727620,1716388246849,-500.0,0.0003279,2]
[327727622,1716388246858,-500.0,0.0003279,2]
[327727623,1716388246867,-195.0,0.0003279,2]
[327727625,1716388246876,-500.0,0.0003279,2]
[327727626,1716388246886,-500.0,0.0003279,2]
[327727628,1716388246895,-500.0,0.0003279,2]
[327727629,1716388246904,-500.0,0.0003279,2]
[327727631,1716388246913,-500.0,0.0003279,2]
[327727632,1716388246923,-500.0,0.0003279,2]
[327727634,1716388246932,-500.0,0.0003279,2]
[327727635,1716388246941,-500.0,0.0003279,2]
[327727637,1716388246951,-500.0,0.0003279,2]
[327727638,1716388246960,-500.0,0.0003279,2]
[327727640,1716388246970,-500.0,0.0003279,2]
[327727641,1716388246979,-500.0,0.0003279,2]
[327727643,1716388246989,-500.0,0.0003279,2]
[327727645,1716388246999,-500.0,0.0003279,2]
[327727646,1716388247008,-500.0,0.0003279,2]
[327727648,1716388247017,-500.0,0.0003279,2]
[327727649,1716388247026,-500.0,0.0003279,2]
[327727651,1716388247035,-500.0,0.0003279,2]
[327727652,1716388247044,-500.0,0.0003279,2]
[327727654,1716388247053,-500.0,0.0003279,2]
[327727656,1716388247063,-500.0,0.0003279,2]
[327727657,1716388247072,-500.0,0.0003279,2]
[327727659,1716388247081,-374.70417176,0.0003279,2]
[327727660,1716388247091,-500.0,0.0003279,2]
[327727662,1716388247100,-500.0,0.0003279,2]
[327727664,1716388247109,-500.0,0.0003279,2]
[327727665,1716388247119,-500.0,0.0003279,2]
[327727667,1716388247128,-500.0,0.0003279,2]
[327727669,1716388247137,-500.0,0.0003279,2]
[327727670,1716388247147,-500.0,0.0003279,2]
[327727672,1716388247156,-500.0,0.0003279,2]
[327727674,1716388247165,-500.0,0.0003279,2]
[327727675,1716388247174,-500.0,0.0003279,2]
[327727677,1716388247183,-500.0,0.0003279,2]
[327727678,1716388247192,-609.08529866,0.0003279,2]
[327727680,1716388247202,-294.56266559,0.0003279,4]
[327727682,1716388247211,-504.27066564,0.0003279,2]
[327727683,1716388247221,-13850.33925097,0.0003279,5]
[327727685,1716388247230,-741.1,0.00032791,6]
[327727687,1716388247240,-741.1,0.00032791,6]
[327727688,1716388247251,-741.1,0.00032791,6]
[327727690,1716388247260,-22315.23795543,0.00032793,5]
[327727692,1716388247269,-1280.85326046,0.00032794,4]
[327727693,1716388247279,-524.29868535,0.00032796,4]
[327727695,1716388247288,-741.1,0.00032799,6]
[327727697,1716388247298,-26212.71211548,0.000328,2]
[327727698,1716388247307,-5345.74305941,0.000328,4]
[327727700,1716388247316,-155.05153825,0.000328,4]
[327727702,1716388247326,-155.00680195,0.000328,4]
[327727703,1716388247336,-155.09885599,0.000328,4]
[327727705,1716388247346,-1011.82,0.000328,120]
[327727706,1716388247355,-151.0,0.000328,2]
[327727708,1716388247365,-241.869904,0.000328,2]
[327727710,1716388247376,-281.0,0.000328,6]
[327727711,1716388247386,-563.0,0.000328,6]
[327727713,1716388247395,-563.0,0.000328,6]
[327727715,1716388247405,-151.0,0.000328,7]
[327727716,1716388247414,-500.0,0.000328,2]
[327727718,1716388247424,-44673.48039345,0.000328,5]
[327727720,1716388247438,-383.8633,0.000328,2]
[327727721,1716388247448,-383.8633,0.000328,2]
[327727723,1716388247457,-151.0,0.000328,2]
[327727725,1716388247467,-6895.68318444,0.00032864,5]
[327727726,1716388247478,-500.0,0.00032876,2]
[327727728,1716388247487,-401.9947545,0.00032877,30]
[327727730,1716388247500,-920.42024432,0.00032897,4]
[327727731,1716388247509,-444.1506385,0.00032897,4]
[327727733,1716388247518,-190.96664974,0.00032897,2]
[327727735,1716388247528,-707.16484359,0.00032897,4]
[327727736,1716388247537,-2319.92870423,0.00032897,4]
[327727738,1716388247546,-247.78254465,0.00032897,4]
[327727739,1716388247555,-261.80385838,0.00032897,4]
[327727741,1716388247564,-427.25130369,0.00032897,4]
[327727743,1716388247573,-238.75882037,0.00032897,4]
[327727744,1716388247583,-1581.42130168,0.00032897,4]
[327727746,1716388247592,-155.10121399,0.00032897,4]
[327727747,1716388247602,-2465.73517847,0.00032897,4]
[327727749,1716388247612,-1499.98100622,0.00032897,4]
[327727751,1716388247622,-622.73405143,0.00032897,4]
[327727752,1716388247632,-1403.26792763,0.00032897,4]
[327727754,1716388247642,-402.27306873,0.00032897,4]
[327727755,1716388247650,-285.74012491,0.00032897,4]
[327727757,1716388247660,-243.93498163,0.00032897,7]
[327727759,1716388247669,-1595.95398665,0.00032897,4]
[327727760,1716388247679,-317.22405062,0.00032897,4]
[327727762,1716388247688,-160.27715433,0.00032897,4]
[327727764,1716388247698,-1885.8334935,0.00032898,4]
[327727765,1716388247707,-821.05484739,0.00032898,2]
[327727767,1716388247716,-155.14107215,0.00032898,4]
[327727768,1716388247725,-155.019757,0.00032898,2]
[327727770,1716388247734,-151.0,0.00032898,2]
[327727771,1716388247743,-151.0,0.00032898,2]
[327727773,1716388247756,-151.0,0.00032898,2]
[327727775,1716388247766,-461.857862,0.00032898,2]
[327727777,1716388247774,-461.857862,0.00032898,2]
[327727779,1716388247783,-168.657795,0.00032898,2]
[327727781,1716388247793,-168.657795,0.00032898,2]
[327727782,1716388247802,-151.0,0.00032898,2]
[327727783,1716388247811,-151.0,0.00032898,2]
[327727784,1716388247820,-151.0,0.00032898,2]
[327727785,1716388247829,-151.0,0.00032898,2]
[327727786,1716388247839,-151.0,0.00032898,2]
[327727787,1716388247848,-151.0,0.00032898,2]
[327727788,1716388247858,-151.0,0.00032898,2]
[327727789,1716388247867,-151.0,0.00032898,2]
[327727790,1716388247876,-151.0,0.00032898,2]
[327727791,1716388247886,-151.480492,0.00032898,2]
[327727792,1716388247895,-151.0,0.00032898,2]
[327727793,1716388247904,-151.0,0.00032898,2]
[327727794,1716388247913,-151.0,0.00032898,2]
[327727795,1716388247923,-151.0,0.00032898,2]
[327727796,1716388247933,-160.796947,0.00032898,2]
[327727797,1716388247942,-151.0,0.00032898,2]
[327727798,1716388247952,-1515.65676,0.00032898,2]
[327727799,1716388247962,-1515.65676,0.00032898,2]
[327727800,1716388247972,-151.0,0.00032898,2]
[327727802,1716388247981,-151.0,0.00032898,2]
[327727804,1716388247991,-741.1,0.00032898,6]
[327727806,1716388248002,-741.1,0.00032898,6]
[327727808,1716388248012,-151.0,0.00032898,2]
[327727810,1716388248022,-151.0,0.00032898,2]
[327727812,1716388248031,-735.728025,0.00032898,2]
[327727814,1716388248041,-151.0,0.00032898,2]
[327727816,1716388248050,-394.421559,0.00032898,2]
[327727818,1716388248059,-394.421559,0.00032898,2]
[327727820,1716388248069,-735.728025,0.00032898,2]
[327727822,1716388248079,-204.71915,0.00032898,2]
[327727824,1716388248089,-204.71915,0.00032898,2]
[327727826,1716388248098,-348.636757,0.00032898,2]
[327727828,1716388248108,-348.636757,0.00032898,2]
[327727830,1716388248117,-151.0,0.00032898,2]
[327727832,1716388248127,-151.0,0.00032898,2]
[327727834,1716388248136,-151.0,0.00032898,2]
[327727836,1716388248146,-296.38014,0.00032898,2]
[327727838,1716388248156,-296.38014,0.00032898,2]
[327727840,1716388248166,-629.839864,0.00032898,2]
[327727842,1716388248175,-151.0,0.00032898,2]
[327727844,1716388248185,-629.839864,0.00032898,2]
[327727846,1716388248194,-151.0,0.00032898,2]
[327727848,1716388248204,-151.0,0.00032898,2]
[327727850,1716388248214,-151.229336,0.00032898,2]
[327727852,1716388248223,-151.0,0.00032898,2]
[327727854,1716388248233,-151.0,0.00032898,2]
[327727855,1716388248242,-151.0,0.00032898,2]
[327727856,1716388248254,-151.0,0.00032898,2]
[327727857,1716388248264,-204.21,0.00032899,2]
[327727858,1716388248273,-204.21,0.00032899,2]
[327727859,1716388248283,-204.21,0.00032899,2]
[327727860,1716388248292,-204.21,0.00032899,2]
[327727861,1716388248402,-204.21,0.00032899,2]
[327727862,1716388248413,-204.21,0.00032899,2]
[327727863,1716388248425,-204.21,0.00032899,2]
[327727864,1716388248435,-204.21,0.00032899,2]
[327727865,1716388248445,-204.21,0.00032899,2]
[327727866,1716388248454,-204.21,0.00032899,2]
[327727867,1716388248464,-50778.25595288,0.00032899,4]
[327727868,1716388248473,-151.0,0.00032899,2]
[327727869,1716388248483,-151.0,0.00032899,2]
[327727870,1716388248492,-151.0,0.00032899,2]
[327727871,1716388248504,-151.0,0.00032899,2]
[327727872,1716388248514,-151.948907,0.00032899,2]
[327727873,1716388248523,-461.857862,0.00032899,2]
[327727874,1716388248532,-461.857862,0.00032899,2]
[327727875,1716388248542,-168.657795,0.00032899,2]
[327727876,1716388248551,-168.657795,0.00032899,2]
[327727878,1716388248560,-151.0,0.00032899,2]
[327727880,1716388248570,-151.0,0.00032899,2]
[327727882,1716388248580,-151.0,0.00032899,2]
[327727884,1716388248589,-151.0,0.00032899,2]
[327727886,1716388248598,-151.0,0.00032899,2]
[327727888,1716388248607,-151.0,0.00032899,2]
[327727890,1716388248616,-151.0,0.00032899,2]
[327727892,1716388248626,-151.0,0.00032899,2]
[327727894,1716388248635,-151.0,0.00032899,2]
[327727896,1716388248645,-151.0,0.00032899,2]
[327727898,1716388248655,-151.0,0.00032899,2]
[327727900,1716388248664,-198.108514,0.00032899,2]
[327727902,1716388248673,-151.0,0.00032899,2]
[327727904,1716388248682,-1515.65676,0.00032899,2]
[327727906,1716388248691,-1515.65676,0.00032899,2]
[327727908,1716388248700,-151.0,0.00032899,2]
[327727910,1716388248710,-151.0,0.00032899,2]
[327727912,1716388248719,-741.1,0.00032899,6]
[327727914,1716388248729,-741.1,0.00032899,6]
[327727916,1716388248738,-741.1,0.00032899,6]
[327727918,1716388248749,-741.1,0.00032899,6]
[327727920,1716388248758,-741.1,0.00032899,6]
[327727922,1716388248767,-741.1,0.00032899,6]
[327727923,1716388248777,-151.0,0.00032899,2]
[327727926,1716388248787,-151.0,0.00032899,2]
[327727928,1716388248797,-735.728025,0.00032899,2]
[327727930,1716388248806,-394.421559,0.00032899,2]
[327727932,1716388248815,-394.421559,0.00032899,2]
[327727934,1716388248824,-735.728025,0.00032899,2]
[327727936,1716388248833,-204.71915,0.00032899,2]
[327727937,1716388248842,-204.71915,0.00032899,2]
[327727939,1716388248853,-348.636757,0.00032899,2]
[327727941,1716388248862,-348.636757,0.00032899,2]
[327727943,1716388248871,-151.0,0.00032899,2]
[327727945,1716388248881,-151.0,0.00032899,2]
[327727947,1716388248890,-151.914758,0.00032899,2]
[327727949,1716388248899,-296.38014,0.00032899,2]
[327727951,1716388248909,-296.38014,0.00032899,2]
[327727953,1716388248919,-629.839864,0.00032899,2]
[327727955,1716388248928,-151.0,0.00032899,2]
[327727958,1716388248938,-629.839864,0.00032899,2]
[327727960,1716388248947,-151.0,0.00032899,2]
[327727962,1716388248957,-151.0,0.00032899,2]
[327727964,1716388248966,-153.314279,0.00032899,2]
[327727966,1716388248976,-151.0,0.00032899,2]
[327727968,1716388248985,-158.339831,0.00032899,2]
[327727969,1716388248995,-151.0,0.00032899,2]
[327727971,1716388249005,-147603.32419549,0.000329,3]
[327727974,1716388249015,-650.19187732,0.000329,120]
[327727976,1716388249031,-34215.36121604,0.000329,120]
[327727978,1716388249041,-3466.74305095,0.000329,2]
[327727981,1716388249053,-1235.72236936,0.000329,2]
[327727983,1716388249063,-2372.05912637,0.000329,2]
[327727985,1716388249075,-2093.67,0.000329,2]
[327727989,1716388249107,-236.73629394,0.000329,2]
[327727991,1716388249117,-4702.46542031,0.000329,2]
[327727993,1716388249128,-4702.46542031,0.000329,2]
[327727995,1716388249137,-4702.46542031,0.000329,2]
[327727997,1716388249147,-4702.46542031,0.000329,2]
[327727999,1716388249156,-4702.46542031,0.000329,2]
[327728001,1716388249166,-4702.46542031,0.000329,2]
[327728003,1716388249175,-4702.46542031,0.000329,2]
[327728005,1716388249184,-4702.46542031,0.000329,2]
[327728007,1716388249194,-151.0,0.000329,2]
[327728009,1716388249203,-151.0,0.000329,2]
[327728011,1716388249212,-151.0,0.000329,2]
[327728013,1716388249221,-292.197804,0.000329,2]
[327728015,1716388249231,-151.0,0.000329,2]
[327728017,1716388249241,-188.909754,0.000329,2]
[327728019,1716388249253,-461.857862,0.000329,2]
[327728021,1716388249262,-461.857862,0.000329,2]
[327728023,1716388249272,-461.857862,0.000329,2]
[327728025,1716388249282,-461.857862,0.000329,2]
[327728027,1716388249291,-461.857862,0.000329,2]
[327728029,1716388249300,-461.857862,0.000329,2]
[327728031,1716388249310,-461.857862,0.000329,2]
[327728033,1716388249320,-461.857862,0.000329,2]
[327728035,1716388249329,-168.657795,0.000329,2]
[327728037,1716388249338,-168.657795,0.000329,2]
[327728039,1716388249347,-168.657795,0.000329,2]
[327728041,1716388249357,-168.657795,0.000329,2]
[327728043,1716388249366,-168.657795,0.000329,2]
[327728045,1716388249375,-168.657795,0.000329,2]
[327728047,1716388249384,-168.657795,0.000329,2]
[327728049,1716388249394,-168.657795,0.000329,2]
[327728051,1716388249403,-151.0,0.000329,2]
[327728053,1716388249413,-151.0,0.000329,2]
[327728055,1716388249423,-151.0,0.000329,2]
[327728057,1716388249441,-225.565048,0.000329,2]
[327728059,1716388249450,-152.757739,0.000329,2]
[327728061,1716388249460,-151.0,0.000329,2]
[327728063,1716388249469,-151.0,0.000329,2]
[327728065,1716388249481,-151.0,0.000329,2]
[327728067,1716388249491,-151.0,0.000329,2]
[327728069,1716388249502,-151.0,0.000329,2]
[327728071,1716388249512,-151.0,0.000329,2]
[327728073,1716388249522,-151.0,0.000329,2]
[327728075,1716388249531,-151.0,0.000329,2]
[327728077,1716388249540,-151.0,0.000329,2]
[327728079,1716388249550,-151.0,0.000329,2]
[327728081,1716388249560,-151.0,0.000329,2]
[327728083,1716388249570,-151.0,0.000329,2]
[327728084,1716388249580,-151.0,0.000329,2]
[327728085,1716388249589,-271.860297,0.000329,2]
[327728086,1716388249599,-151.0,0.000329,2]
[327728087,1716388249608,-208.054144,0.000329,2]
[327728088,1716388249618,-151.0,0.000329,2]
[327728089,1716388249627,-151.0,0.000329,2]
[327728090,1716388249636,-151.0,0.000329,2]
[327728091,1716388249646,-151.0,0.000329,2]
[327728092,1716388249655,-1515.65676,0.000329,2]
[327728093,1716388249664,-1515.65676,0.000329,2]
[327728094,1716388249674,-1515.65676,0.000329,2]
[327728095,1716388249683,-1515.65676,0.000329,2]
[327728096,1716388249692,-1515.65676,0.000329,2]
[327728097,1716388249702,-1515.65676,0.000329,2]
[327728098,1716388249710,-1515.65676,0.000329,2]
[327728100,1716388249720,-1515.65676,0.000329,2]
[327728102,1716388249729,-151.0,0.000329,2]
[327728104,1716388249738,-151.0,0.000329,2]
[327728105,1716388249748,-151.0,0.000329,2]
[327728107,1716388249757,-151.0,0.000329,2]
[327728109,1716388249767,-151.0,0.000329,2]
[327728111,1716388249776,-151.0,0.000329,2]
[327728113,1716388249786,-229.27365,0.000329,2]
[327728115,1716388249796,-151.0,0.000329,2]
[327728118,1716388249806,-151.0,0.000329,2]
[327728120,1716388249815,-151.0,0.000329,2]
[327728121,1716388249825,-151.0,0.000329,2]
[327728123,1716388249835,-173.073439,0.000329,2]
[327728124,1716388249846,-735.728025,0.000329,2]
[327728125,1716388249856,-735.728025,0.000329,2]
[327728126,1716388249866,-394.421559,0.000329,2]
[327728127,1716388249876,-735.728025,0.000329,2]
[327728128,1716388249886,-394.421559,0.000329,2]
[327728129,1716388249896,-735.728025,0.000329,2]
[327728130,1716388249906,-394.421559,0.000329,2]
[327728131,1716388249915,-394.421559,0.000329,2]
[327728132,1716388249925,-394.421559,0.000329,2]
[327728133,1716388249935,-394.421559,0.000329,2]
[327728134,1716388249944,-394.421559,0.000329,2]
[327728136,1716388249954,-394.421559,0.000329,2]
[327728138,1716388249964,-735.728025,0.000329,2]
[327728140,1716388249973,-735.728025,0.000329,2]
[327728141,1716388249983,-735.728025,0.000329,2]
[327728143,1716388249993,-735.728025,0.000329,2]
[327728145,1716388250005,-204.71915,0.000329,2]
[327728147,1716388250014,-204.71915,0.000329,2]
[327728149,1716388250024,-204.71915,0.000329,2]
[327728151,1716388250034,-204.71915,0.000329,2]
[327728152,1716388250044,-204.71915,0.000329,2]
[327728154,1716388250055,-204.71915,0.000329,2]
[327728156,1716388250064,-204.71915,0.000329,2]
[327728158,1716388250075,-204.71915,0.000329,2]
[327728160,1716388250085,-348.636757,0.000329,2]
[327728162,1716388250096,-348.636757,0.000329,2]
[327728163,1716388250105,-348.636757,0.000329,2]
[327728165,1716388250115,-348.636757,0.000329,2]
[327728167,1716388250124,-348.636757,0.000329,2]
[327728169,1716388250134,-348.636757,0.000329,2]
[327728170,1716388250144,-348.636757,0.000329,2]
[327728171,1716388250156,-348.636757,0.000329,2]
[327728172,1716388250165,-151.0,0.000329,2]
[327728173,1716388250174,-155.071019,0.000329,2]
[327728174,1716388250183,-151.0,0.000329,2]
[327728175,1716388250193,-151.0,0.000329,2]
[327728176,1716388250202,-151.0,0.000329,2]
[327728177,1716388250211,-151.0,0.000329,2]
[327728178,1716388250221,-296.38014,0.000329,2]
[327728179,1716388250230,-296.38014,0.000329,2]
[327728180,1716388250240,-296.38014,0.000329,2]
[327728181,1716388250250,-296.38014,0.000329,2]
[327728182,1716388250353,-296.38014,0.000329,2]
[327728183,1716388250364,-296.38014,0.000329,2]
[327728184,1716388250373,-296.38014,0.000329,2]
[327728185,1716388250383,-296.38014,0.000329,2]